bitfinex/quotes_SOLUSD_20230101
["timestamp","ask_amount","ask_price","bid_price","bid_amount"]
[1672614306509,30.0,10.011,10.002,23.7314]
[1672614306734,30.0,10.011,10.002,340.6714]
[1672614308414,54.7681,10.011,10.002,340.6714]
[1672614309567,54.7681,10.011,10.002,323.6314]
[1672614340712,54.7681,10.011,10.002,321.1314]
[1672614342168,54.7681,10.011,10.002,411.52121846]
[1672614342388,54.7681,10.011,10.002,336.93870786]
[1672614350797,24.7681,10.011,10.003,30.0]
[1672614351210,24.7681,10.011,10.004,15.80730786]
[1672614351936,54.7681,10.011,10.004,15.80730786]
[1672614354359,24.7681,10.011,10.004,15.80730786]
[1672614354890,54.7681,10.011,10.004,15.80730786]
[1672614362670,54.7681,10.011,10.002,440.06717444]
[1672614362868,54.7681,10.011,10.003,15.80730786]
[1672614363092,54.7681,10.011,10.004,299.9]
[1672614363400,54.7681,10.011,10.004,315.70730786]
[1672614367083,24.7681,10.011,10.004,315.70730786]
[1672614367283,30.0,10.015,10.006,74.5825106]
[1672614367487,30.0,10.015,10.007,20.0]
[1672614368019,30.0,10.015,10.006,74.5825106]
[1672614369300,30.0,10.015,10.007,20.0]
[1672614369613,30.0,10.015,10.006,42.9563]
[1672614370643,30.0,10.015,10.006,105.2309455]
[1672614374864,30.0,10.015,10.007,15.80730786]
[1672614375066,30.0,10.015,10.008,20.0]
[1672614375385,30.0,10.015,10.008,35.80730786]
[1672614375804,30.0,10.015,10.008,27.40291383]
[1672614397459,30.0,10.015,10.008,11.59560597]
[1672614404623,105.0,10.015,10.008,11.59560597]
[1672614406938,105.0,10.015,10.009,15.80730786]
[1672614407252,105.0,10.015,10.01,20.0]
[1672614409345,105.0,10.015,9.9995,74.5825106]
[1672614409550,30.0,10.013,10.003,15.80730786]
[1672614409759,30.0,10.011,10.003,15.80730786]
[1672614409969,30.0,10.011,10.0,297.4]
[1672614410174,136.451,10.01,10.0,297.4]
[1672614410389,30.0,10.009,10.0,357.79932875]
[1672614410602,52.9755,10.009,10.001,15.80730786]
[1672614410921,52.9755,10.009,10.001,373.60663661]
[1672614421011,52.9755,10.009,10.0,23.4914]
[1672614421425,30.0,10.007,10.0,23.4914]
[1672614425522,30.0,10.005,10.0,23.4914]
[1672614425751,30.0,10.005,9.9972,53.11784894]
[1672614425964,30.0,10.005,9.998,20.0]
[1672614451269,75.06,10.007,9.998,20.0]
[1672614451607,30.0,10.008,9.9981,53.11784894]
[1672614451800,30.0,10.008,9.999,20.0]
[1672614454234,30.0,10.008,9.9993,74.5825106]
[1672614454445,30.0,10.008,10.0,20.0]
[1672614467509,30.0,10.006,10.0,20.0]
[1672614468112,30.0,10.008,10.0,20.0]
[1672614468343,22.9755,10.009,10.0,20.0]
[1672614468569,22.9755,10.009,10.001,15.80730786]
[1672614468970,22.9755,10.009,10.006,30.0]
[1672614469177,113.4755,10.01,10.003,299.9]
[1672614469400,113.4755,10.01,10.006,74.5825106]
[1672614469614,113.4755,10.01,10.007,20.0]
[1672614469830,30.0,10.014,10.007,20.0]
[1672614470250,30.0,10.014,10.006,20.0]
[1672614471916,30.0,10.014,10.006,73.11784894]
[1672614472122,1.0,10.016,10.006,211.35921498]
[1672614472349,1.0,10.016,10.006,533.84511498]
[1672614472558,1.0,10.016,10.007,30.0]
[1672614472761,1.0,10.016,10.008,20.0]
[1672614472978,1.0,10.016,10.008,169.93845761]
[1672614473169,1.0,10.016,10.008,105.98620272]
[1672614473590,1.0,10.016,10.008,128.62780272]
[1672614475496,1.0,10.016,10.008,428.52780272]
[1672614475724,1.0,10.016,10.009,85.98620272]
[1672614475925,1.0,10.016,10.01,20.0]
[1672614478013,1.0,10.016,10.012,299.9]
[1672614478440,1.0,10.016,10.013,83.85645486]
[1672614482445,1.0,10.016,10.013,383.75645486]
[1672614482965,1.0,10.016,10.015,30.0]
[1672614483171,1.0,10.016,10.015,349.9]
[1672614483369,1.0,10.016,10.015,505.00992513]
[1672614484315,104.9,10.028,10.015,505.00992513]
[1672614484524,104.9,10.028,10.016,20.0]
[1672614484940,104.9,10.028,10.017,383.75645486]
[1672614485151,104.9,10.028,10.018,7.11268378]
[1672614485387,104.9,10.028,10.018,83.85645486]
[1672614486743,104.9,10.028,10.017,299.9]
[1672614487276,104.9,10.028,10.018,20.0]
[1672614487478,104.9,10.028,10.016,15.80730786]
[1672614487799,30.0,10.024,10.009,24.9228]
[1672614488116,74.94,10.023,10.011,76.59486641]
[1672614488305,30.0,10.022,10.011,76.59486641]
[1672614488515,137.374,10.021,10.011,76.59486641]
[1672614488740,30.0,10.019,10.011,76.59486641]
[1672614489575,53.9901,10.019,10.011,76.59486641]
[1672614491791,53.9901,10.019,10.011,95.57486641]
[1672614495801,53.9901,10.019,10.011,76.59486641]
[1672614525120,128.9601,10.019,10.011,76.59486641]
[1672614526706,53.9901,10.019,10.011,76.59486641]
[1672614527244,74.98,10.018,10.01,22.5752]
[1672614527443,30.0,10.017,10.011,20.0]
[1672614527762,94.99,10.016,10.0,74.5825106]
[1672614527980,94.99,10.016,9.9928,448.34961792]
[1672614527981,142.0435,10.016,9.9991,74.5825106]
[1672614528179,180.9474,10.015,10.001,65.36557147]
[1672614528383,30.0,10.013,10.001,65.36557147]
[1672614528598,158.2356,10.012,10.001,365.26557147]
[1672614528911,30.0,10.011,10.001,422.02568022]
[1672614529131,164.755,10.011,10.001,422.02568022]
[1672614529661,23.5729,10.01,10.001,356.66010875]
[1672614530063,23.5729,10.01,10.001,299.9]
[1672614530384,131.6845,10.01,10.0,39.58720786]
[1672614530714,30.0,10.009,10.0,339.48720786]
[1672614530899,22.784,10.009,10.0,396.24731661]
[1672614531112,22.784,10.009,10.001,365.26557147]
[1672614531549,22.784,10.009,10.001,422.02568022]
[1672614533765,52.784,10.009,10.001,422.02568022]
[1672614534295,22.784,10.009,10.002,45.80730786]
[1672614534496,22.784,10.009,10.003,299.9]
[1672614534714,22.784,10.009,10.004,30.0]
[1672614534908,22.784,10.009,10.004,15.80730786]
[1672614537579,22.784,10.009,10.004,45.80730786]
[1672614538101,22.784,10.009,10.004,15.80730786]
[1672614538501,22.784,10.009,10.003,299.9]
[1672614540186,22.784,10.009,10.006,30.0]
[1672614540397,23.5392,10.01,10.007,20.0]
[1672614540726,24.4223,10.013,10.007,319.9]
[1672614540917,30.0,10.015,10.007,319.9]
[1672614541456,129.7238,10.018,10.007,319.9]
[1672614541661,53.1444,10.017,10.007,319.9]
[1672614542409,53.1444,10.017,10.007,342.5907]
[1672614543366,23.1444,10.017,10.007,471.84307508]
[1672614543665,23.1444,10.017,10.008,30.0]
[1672614543872,23.1444,10.017,10.009,20.0]
[1672614549136,53.1444,10.017,10.009,20.0]
[1672614552169,23.1444,10.017,10.009,20.0]
[1672614552489,23.1444,10.017,10.009,385.26557147]
[1672614557527,53.1444,10.017,10.009,385.26557147]
[1672614559650,23.1444,10.017,10.01,15.80730786]
[1672614559961,23.1444,10.017,10.011,85.36557147]
[1672614560172,23.1444,10.017,10.012,299.9]
[1672614563204,53.1444,10.017,10.012,299.9]
[1672614563412,23.1444,10.017,10.012,299.9]
[1672614570350,23.1444,10.017,10.011,150.74563355]
[1672614570670,30.0,10.016,10.011,20.0]
[1672614570872,30.0,10.016,10.01,20.0]
[1672614582659,53.1444,10.017,10.01,35.80730786]
[1672614588119,53.1444,10.017,10.01,90.03866361]
[1672614588342,53.1444,10.017,10.01,389.93866361]
[1672614590435,23.1444,10.017,10.01,389.93866361]
[1672614590965,23.1444,10.017,10.01,446.63756841]
[1672614594108,23.1444,10.017,10.011,30.0]
[1672614594519,23.1444,10.017,10.012,315.70730786]
[1672614595459,23.1444,10.017,10.012,369.93866361]
[1672614597383,30.0,10.026,10.013,164.97232905]
[1672614597574,30.0,10.026,10.016,374.4825106]
[1672614597782,30.0,10.026,10.017,20.0]
[1672614597992,30.0,10.026,10.017,74.23135575]
[1672614599257,30.0,10.026,10.018,54.23135575]
[1672614599467,30.0,10.026,10.019,20.0]
[1672614600009,53.3281,10.027,10.019,20.0]
[1672614600319,23.3281,10.027,10.019,20.0]
[1672614600636,53.3281,10.027,10.019,93.91958875]
[1672614601456,53.3281,10.027,10.019,20.0]
[1672614603049,23.3281,10.027,10.019,20.0]
[1672614603452,53.3281,10.027,10.019,20.0]
[1672614606934,30.0,10.026,10.019,20.0]
[1672614609121,53.3281,10.027,10.019,20.0]
[1672614609759,53.3281,10.027,10.015,58.5147448]
[1672614609969,122.957,10.026,10.009,24.5197]
[1672614610174,265.3495,10.026,10.011,66.03725541]
[1672614610401,30.0,10.024,10.012,30.0]
[1672614610598,74.94,10.023,10.012,329.9]
[1672614610818,131.4974,10.022,10.013,66.03725541]
[1672614611455,74.92,10.026,10.014,299.9]
[1672614611647,74.92,10.026,10.015,20.0]
[1672614611859,74.92,10.026,10.016,299.9]
[1672614612068,74.92,10.026,10.017,20.0]
[1672614612492,127.5345,10.027,10.017,35.80730786]
[1672614613032,127.5345,10.027,10.017,58.31250786]
[1672614613866,127.5345,10.027,10.018,299.9]
[1672614614081,22.6245,10.027,10.019,20.0]
[1672614614293,22.6245,10.027,10.019,35.80730786]
[1672614614501,22.6245,10.027,10.02,30.0]
[1672614614715,22.6245,10.027,10.021,20.0]
[1672614614930,22.6245,10.027,10.021,35.80730786]
[1672614615243,22.6245,10.027,10.022,15.80730786]
[1672614615434,22.6245,10.027,10.023,30.0]
[1672614615643,3.0319056,10.029,10.023,30.0]
[1672614615851,3.0319056,10.029,10.024,335.70730786]
[1672614616067,0.0019056,10.029,10.025,16.11034]
[1672614616274,166.3029,10.038,10.029,1.0319056]
[1672614616593,298.82314473,10.054,10.046,299.9]
[1672614616795,283.01583687,10.054,10.048,299.9]
[1672614617011,182.12018123,10.058,10.054,349.25752924]
[1672614617230,251.18382109,10.059,10.055,335.96228]
[1672614617545,10.4017027,10.066,10.058,140.63490687]
[1672614617766,10.4017027,10.066,10.058,73.0225271]
[1672614617976,10.4017027,10.066,10.054,349.25752924]
[1672614618159,182.36613185,10.065,10.054,349.25752924]
[1672614618371,182.36613185,10.065,10.054,0.00752924]
[1672614618709,30.0,10.063,10.05,85.3680197]
[1672614618900,74.65,10.062,10.055,0.00516963]
[1672614619118,20.0,10.061,10.055,0.00516963]
[1672614619323,30.0,10.059,10.055,0.00516963]
[1672614619541,74.68,10.058,10.055,0.00516963]
[1672614619750,20.0,10.057,10.055,0.00516963]
[1672614619952,74.69,10.056,10.055,0.00516963]
[1672614620162,104.69,10.056,10.055,0.00516963]
[1672614620374,104.69,10.056,10.041,146.0450542]
[1672614620799,30.0,10.055,10.043,15.80730786]
[1672614621008,30.0,10.055,10.048,146.0450542]
[1672614621220,30.0,10.055,10.049,146.0450542]
[1672614621657,30.0,10.055,10.046,331.71943329]
[1672614621841,30.0,10.055,10.046,161.85236206]
[1672614622059,30.0,10.055,10.047,20.0]
[1672614623646,30.0,10.055,10.044,146.0450542]
[1672614623960,30.0,10.053,10.044,53.69355262]
[1672614624171,30.0,10.053,10.039,209.14060513]
[1672614624172,74.72,10.052,10.039,209.14060513]
[1672614624368,30.0,10.051,10.039,209.14060513]
[1672614624580,30.0,10.049,10.039,209.14060513]
[1672614624793,74.75,10.048,10.039,209.14060513]
[1672614624991,30.0,10.047,10.039,209.14060513]
[1672614625734,74.77,10.046,10.039,209.14060513]
[1672614625943,30.0,10.045,10.039,209.14060513]
[1672614626149,30.0,10.043,10.039,209.14060513]
[1672614631843,74.78,10.044,10.043,0.00194654]
[1672614632377,30.0,10.043,10.039,209.14060513]
[1672614632579,30.0,10.041,10.039,209.14060513]
[1672614632793,30.0,10.041,10.039,90.67590513]
[1672614632990,30.0,10.041,10.039,0.00940513]
[1672614633196,30.0,10.041,10.031,21.96]
[1672614633531,30.0,10.041,10.03,5.987]
[1672614633715,30.0,10.041,10.031,20.0]
[1672614633929,30.0,10.041,10.032,9.384]
[1672614635611,74.8,10.042,10.032,9.384]
[1672614636045,99.1798,10.043,10.032,9.384]
[1672614636259,69.1798,10.043,10.033,30.0]
[1672614636577,69.1798,10.043,10.034,22.6]
[1672614637212,69.1798,10.043,10.034,100.56954636]
[1672614637522,69.1798,10.043,10.034,400.46954636]
[1672614642464,30.0,10.042,10.034,100.56954636]
[1672614642651,30.0,10.042,10.034,22.6]
[1672614642985,30.0,10.042,10.033,15.97]
[1672614643195,104.8,10.042,10.031,35.98]
[1672614644241,104.8,10.042,10.031,20.0]
[1672614646963,104.8,10.042,9.9888,3.40966687]
[1672614646964,12.30350925,10.041,10.022,30.0]
[1672614647181,30.0,10.039,10.023,33.25089224]
[1672614647395,30.0,10.037,10.022,30.0]
[1672614647598,30.0,10.035,10.023,22.3]
[1672614647812,74.86,10.034,10.023,22.3]
[1672614648138,267.2947,10.035,10.023,22.3]
[1672614648763,237.2947,10.035,10.021,260.19008901]
[1672614648970,98.7807,10.041,10.037,255.12127725]
[1672614649186,23.9707,10.041,10.037,255.12127725]
[1672614649714,23.9707,10.041,10.037,0.00317853]
[1672614649921,42.30350925,10.045,10.037,0.00317853]
[1672614649922,30.0,10.039,10.037,0.00317853]
[1672614650141,74.83,10.038,10.037,0.00317853]
[1672614650348,74.83,10.038,10.026,30.0]
[1672614650349,30.0,10.037,10.022,20.0]
[1672614650550,74.84,10.036,10.023,74.94]
[1672614650765,30.0,10.035,10.024,30.0]
[1672614650972,74.86,10.034,10.024,30.0]
[1672614651299,74.86,10.034,10.023,74.94]
[1672614651515,74.86,10.034,10.023,374.84]
[1672614651706,74.86,10.034,10.024,30.0]
[1672614652336,74.86,10.034,10.023,74.94]
[1672614652337,30.0,10.033,10.023,74.94]
[1672614652777,30.0,10.033,10.022,124.95]
[1672614653181,30.0,10.033,10.022,94.95]
[1672614653808,30.0,10.031,10.022,20.0]
[1672614654355,74.87,10.032,10.022,30.0]
[1672614654547,74.87,10.032,10.023,74.94]
[1672614654758,30.0,10.031,10.022,74.95]
[1672614654964,30.0,10.031,10.021,20.0]
[1672614656026,30.0,10.029,10.021,20.0]
[1672614657804,104.88,10.031,10.022,74.95]
[1672614658239,104.88,10.031,10.021,20.0]
[1672614660673,20.0,10.03,10.015,1831.3641293]
[1672614660879,30.0,10.028,10.016,1831.18128544]
[1672614661092,74.91,10.027,10.016,1831.18128544]
[1672614661506,56.0407267,10.026,10.016,1831.18128544]
[1672614661719,74.92,10.025,10.016,1831.18128544]
[1672614662036,30.0,10.024,10.012,1974.16176905]
[1672614662225,74.94,10.023,10.012,1831.91288004]
[1672614662430,156.0273,10.025,10.013,29.34362093]
[1672614662431,74.93,10.024,10.013,29.34362093]
[1672614662850,74.93,10.024,10.014,30.0]
[1672614663278,74.93,10.024,10.013,30.0]
[1672614663903,30.0,10.023,10.014,1831.54700968]
[1672614664134,74.95,10.022,10.014,1831.54700968]
[1672614665710,74.94,10.023,10.014,1831.54700968]
[1672614666315,156.0273,10.025,10.015,56.19]
[1672614666744,156.0273,10.025,10.017,30.0]
[1672614666957,46.1447,10.025,10.018,56.17]
[1672614667482,74.84,10.036,10.018,514.12619687]
[1672614667797,30.0,10.033,10.026,85.70391901]
[1672614668129,104.86,10.033,10.026,85.70391901]
[1672614668335,30.0,10.033,10.026,85.70391901]
[1672614675275,94.87,10.032,10.026,85.70391901]
[1672614675461,107.17350925,10.032,10.026,85.70391901]
[1672614675673,30.0,10.03,10.026,85.70391901]
[1672614675884,94.9,10.029,10.026,73.70581901]
[1672614676099,30.0,10.028,10.026,61.70771901]
[1672614676315,30.0,10.026,10.016,55.57]
[1672614676948,30.0,10.026,10.017,14.40229818]
[1672614679489,30.0,10.026,10.017,44.40229818]
[1672614679683,30.0,10.026,10.018,55.89]
[1672614680962,30.0,10.026,10.019,14.37434314]
[1672614681585,30.0,10.027,10.019,14.37434314]
[1672614681904,30.0,10.027,10.017,55.84]
[1672614682951,30.0,10.027,10.016,55.84]
[1672614683174,195.5224,10.027,10.016,55.84]
[1672614683988,30.0,10.025,10.016,55.84]
[1672614684627,30.0,10.025,10.015,1831.3641293]
[1672614684837,74.93,10.024,10.015,1831.3641293]
[1672614685154,30.0,10.023,10.017,14.40229818]
[1672614685472,74.95,10.022,10.017,14.40229818]
[1672614686104,30.0,10.023,10.015,1831.3641293]
[1672614687580,74.93,10.024,10.015,1831.3641293]
[1672614687785,123.4124,10.025,10.016,30.0]
[1672614688307,48.4824,10.025,10.016,86.08]
[1672614689358,48.4824,10.025,10.017,20.0]
[1672614689562,48.4824,10.025,10.019,172.24888901]
[1672614689786,23.8997,10.029,10.02,104.92362093]
[1672614689980,74.87,10.032,10.021,30.0]
[1672614690307,74.87,10.032,10.022,75.56]
[1672614690708,30.0,10.031,10.022,75.56]
[1672614690923,30.0,10.031,10.022,20.0]
[1672614691465,30.0,10.031,10.02,115.8561]
[1672614691659,30.0,10.029,10.016,55.6]
[1672614691866,94.9,10.028,10.016,85.6]
[1672614692091,30.0,10.027,10.016,85.6]
[1672614693146,140.5794,10.028,10.016,385.5]
[1672614693453,65.6794,10.028,10.017,30.0]
[1672614693690,65.6794,10.028,10.018,55.59]
[1672614695148,65.6794,10.028,10.019,30.0]
[1672614695783,110.8405,10.029,10.02,20.0]
[1672614695997,110.8405,10.029,10.021,55.74]
[1672614696211,110.8405,10.029,10.022,20.0]
[1672614696422,74.87,10.033,10.023,30.0]
[1672614696630,74.87,10.033,10.024,55.72]
[1672614697153,74.86,10.034,10.025,30.0]
[1672614698199,157.9905,10.035,10.025,30.0]
[1672614698415,157.9905,10.035,10.027,30.0]
[1672614698613,23.1762,10.037,10.028,55.7]
[1672614698827,30.0,10.036,10.028,55.7]
[1672614699056,30.0,10.036,10.026,55.24]
[1672614699671,191.5652,10.037,10.027,30.0]
[1672614699880,191.5652,10.037,10.028,55.23]
[1672614700619,168.389,10.037,10.028,55.23]
[1672614701765,30.0,10.036,10.026,55.29]
[1672614701985,104.84,10.036,10.025,172.1197]
[1672614702522,104.84,10.036,10.025,116.8197]
[1672614714907,74.84,10.036,10.025,116.8197]
[1672614715121,74.84,10.036,10.025,416.7197]
[1672614715344,164.7429,10.036,10.026,30.0]
[1672614715743,164.7429,10.036,10.026,85.45]
[1672614716163,164.7429,10.036,10.026,385.35]
[1672614721439,30.0,10.035,10.026,55.45]
[1672614721652,30.0,10.035,10.025,172.0797]
[1672614722062,74.85,10.035,10.026,30.0]
[1672614722279,30.0,10.035,10.025,172.0797]
[1672614722495,239.5829,10.036,10.025,172.0797]
[1672614722811,30.0,10.035,10.025,172.0797]
[1672614723133,239.5829,10.036,10.026,30.0]
[1672614723341,239.5829,10.036,10.027,55.3]
[1672614723658,239.5829,10.036,10.026,30.0]
[1672614723659,30.0,10.035,10.026,55.31]
[1672614727549,30.0,10.035,10.025,172.1197]
[1672614728166,104.85,10.035,10.025,116.8197]
[1672614730577,151.9534,10.035,10.025,116.8197]
[1672614735313,196.64468947,10.035,10.025,116.8197]
[1672614735523,196.64468947,10.035,10.018,30.0]
[1672614735524,30.0,10.033,10.019,55.56]
[1672614735742,30.0,10.033,10.011,299.9]
[1672614735743,94.87,10.032,10.016,166.644]
[1672614736040,30.0,10.031,10.017,30.0]
[1672614736266,94.89,10.03,10.018,55.57]
[1672614736471,30.0,10.029,10.018,55.57]
[1672614736684,94.9,10.028,10.018,55.57]
[1672614736892,142.7428,10.028,10.018,55.57]
[1672614738697,142.7428,10.028,10.017,85.81]
[1672614738904,30.0,10.027,10.017,85.81]
[1672614739109,30.0,10.027,10.017,55.81]
[1672614739522,30.0,10.027,10.017,85.81]
[1672614739732,77.3571,10.027,10.017,101.61730786]
[1672614740163,47.3571,10.027,10.018,30.0]
[1672614741098,47.3571,10.027,10.018,45.80730786]
[1672614741308,47.3571,10.027,10.018,1876.62301508]
[1672614742053,47.3571,10.027,10.018,1860.81570722]
[1672614742579,47.3571,10.027,10.019,55.84]
[1672614744691,47.3571,10.027,10.018,1830.81570722]
[1672614744899,77.3571,10.027,10.018,1830.81570722]
[1672614746040,47.3571,10.027,10.018,1830.81570722]
[1672614748147,47.3571,10.027,10.019,30.0]
[1672614748674,47.3571,10.027,10.019,85.78]
[1672614752558,77.3571,10.027,10.019,55.78]
[1672614753406,47.3571,10.027,10.019,85.78]
[1672614753625,47.3571,10.027,10.019,55.78]
[1672614753830,133.0679,10.028,10.019,55.78]
[1672614753831,74.89,10.03,10.02,50.0]
[1672614754135,74.89,10.03,10.02,65.80730786]
[1672614754348,74.87,10.032,10.021,55.74]
[1672614754564,74.87,10.032,10.022,50.0]
[1672614755393,30.0,10.031,10.022,131.4738]
[1672614756031,74.89,10.03,10.022,131.4738]
[1672614756241,30.0,10.029,10.022,131.4738]
[1672614758046,94.9,10.028,10.02,1830.45027494]
[1672614758250,30.0,10.027,10.02,1830.45027494]
[1672614758461,74.92,10.026,10.02,1830.45027494]
[1672614758873,30.0,10.025,10.02,1830.45027494]
[1672614759080,74.93,10.024,10.02,1830.45027494]
[1672614759728,30.0,10.023,10.02,1830.45027494]
[1672614760132,74.93,10.024,10.02,1830.45027494]
[1672614760551,104.93,10.025,10.02,1830.45027494]
[1672614761603,104.93,10.025,10.016,23.3369]
[1672614761812,127.873,10.025,10.015,1878.37607079]
[1672614762028,264.2162,10.025,10.015,1878.37607079]
[1672614762571,234.2162,10.025,10.016,30.0]
[1672614762883,159.2862,10.025,10.016,85.96]
[1672614765200,30.0,10.024,10.016,55.96]
[1672614765507,30.0,10.024,10.015,1934.28607079]
[1672614765727,30.0,10.024,10.016,1831.18128544]
[1672614766352,159.2862,10.025,10.016,1831.18128544]
[1672614769619,159.2862,10.025,10.017,30.0]
[1672614771631,30.0,10.024,10.016,1831.18128544]
[1672614774153,234.2162,10.025,10.016,1831.18128544]
[1672614774350,30.0,10.024,10.016,1831.18128544]
[1672614777082,234.2162,10.025,10.016,1831.18128544]
[1672614777424,234.2162,10.025,10.017,30.0]
[1672614777623,159.2862,10.025,10.017,30.0]
[1672614778975,159.2862,10.025,10.017,85.94]
[1672614779182,159.2862,10.025,10.017,101.74730786]
[1672614781190,74.87,10.032,10.019,73.87040009]
[1672614781404,74.87,10.033,10.02,75.76]
[1672614781595,30.0,10.032,10.021,30.0]
[1672614781802,74.88,10.031,10.022,75.75]
[1672614782012,30.0,10.032,10.022,20.0]
[1672614782230,30.0,10.032,10.022,137.3595]
[1672614790667,30.0,10.032,10.022,167.3595]
[1672614791382,30.0,10.032,10.022,137.3595]
[1672614791928,30.0,10.032,10.022,167.3595]
[1672614793277,30.0,10.032,10.022,137.3595]
[1672614793721,30.0,10.032,10.022,167.3595]
[1672614794336,30.0,10.032,10.022,137.3595]
[1672614794643,104.87,10.033,10.022,167.3595]
[1672614794853,104.87,10.033,10.023,30.0]
[1672614795075,30.0,10.032,10.022,192.3492]
[1672614795273,104.87,10.033,10.023,30.0]
[1672614795600,45.4659,10.034,10.023,345.70730786]
[1672614795807,45.4659,10.034,10.023,512.39800786]
[1672614796014,45.4659,10.034,10.025,30.0]
[1672614796223,45.4659,10.034,10.026,55.51]
[1672614796423,30.0,10.033,10.025,55.51]
[1672614796636,45.4659,10.034,10.024,191.6804]
[1672614796843,45.4659,10.034,10.025,30.0]
[1672614797070,75.4659,10.034,10.024,191.6804]
[1672614797594,24.3415,10.033,10.024,191.6804]
[1672614799720,30.0,10.032,10.024,191.6804]
[1672614800537,30.0,10.032,10.024,136.1604]
[1672614804231,129.2115,10.033,10.024,136.1604]
[1672614806312,54.3415,10.033,10.024,136.1604]
[1672614806747,24.3415,10.033,10.025,30.0]
[1672614806949,24.3415,10.033,10.024,136.1604]
[1672614808425,99.2115,10.033,10.024,136.1604]
[1672614808638,24.3415,10.033,10.024,136.1604]
[1672614810443,30.0,10.032,10.024,136.1604]
[1672614812630,30.0,10.032,10.024,191.5804]
[1672614813910,30.0,10.032,10.024,136.1604]
[1672614814097,30.0,10.032,10.024,191.5604]
[1672614814314,30.0,10.032,10.024,136.1604]
[1672614817495,54.3415,10.033,10.024,136.1604]
[1672614817677,30.0,10.032,10.024,136.1604]
[1672614820112,54.3415,10.033,10.024,136.1604]
[1672614823041,24.3415,10.033,10.024,136.1604]
[1672614824114,24.3415,10.033,10.025,85.42]
[1672614824422,24.3415,10.033,10.025,101.22730786]
[1672614832944,24.3415,10.033,10.025,401.12730786]
[1672614835139,24.7238,10.036,10.028,299.9]
[1672614835349,30.0,10.046,10.031,30.0]
[1672614835558,30.0,10.046,10.033,30.0]
[1672614835559,190.4078,10.043,10.033,30.0]
[1672614835778,190.4078,10.043,10.034,55.26]
[1672614836714,30.0,10.042,10.034,55.26]
[1672614836931,30.0,10.042,10.033,193.3525]
[1672614840191,30.0,10.042,10.025,23.3458]
[1672614840192,20.0,10.041,10.028,54.93]
[1672614840402,30.0,10.039,10.025,22.7602]
[1672614840708,30.0,10.037,10.026,54.94]
[1672614840921,74.84,10.036,10.026,54.94]
[1672614841146,30.0,10.035,10.025,77.7002]
[1672614841353,53.0112,10.035,10.025,77.7002]
[1672614841547,53.0112,10.035,10.025,107.7002]
[1672614841755,53.0112,10.035,10.025,77.7002]
[1672614841978,30.0,10.033,10.025,22.7602]
[1672614842174,30.0,10.033,10.024,140.9489]
[1672614842926,30.0,10.033,10.024,118.4064]
[1672614844941,238.6413,10.034,10.024,118.4064]
[1672614845151,238.6413,10.034,10.025,30.0]
[1672614845362,238.6413,10.034,10.025,45.80730786]
[1672614845553,163.7813,10.034,10.025,45.80730786]